fUSD/lending_fUSD_20250123
["ID","MTS","AMOUNT","RATE_DAILY","PERIOD"]
[350088419,1737611465691,-213.0,0.000206,2]
[350088420,1737611465700,-175.87843106,0.00020625,2]
[350088421,1737611465710,-12517.53,0.00020652,2]
[350088422,1737611465719,-2087.18199457,0.00020659,2]
[350088423,1737611465729,-500.0,0.00020719,2]
[350088424,1737611465739,-635.49,0.00020719,2]
[350088425,1737611465748,-500.0,0.00020719,2]
[350088426,1737611465758,-992.45,0.0002072,2]
[350088427,1737611465767,-500.0,0.0002072,2]
[350088428,1737611465776,-1922.27,0.0002072,2]
[350088429,1737611465785,-736.38,0.0002072,2]
[350088430,1737611465795,-598.74,0.0002072,2]
[350088431,1737611465804,-1530.88,0.0002072,2]
[350088432,1737611465814,-1226.94,0.0002072,2]
[350088433,1737611465823,-1453.16,0.0002072,2]
[350088434,1737611465833,-1139.9,0.0002072,2]
[350088435,1737611465843,-794.06,0.0002072,2]
[350088436,1737611465853,-583.42812666,0.0002072,2]
[350088437,1737611465862,-921.2,0.0002072,2]
[350088438,1737611465871,-2179.73,0.0002072,2]
[350088439,1737611465881,-2080.14,0.0002072,2]
[350088440,1737611465891,-1094.55,0.0002072,2]
[350088441,1737611465900,-898.14,0.0002072,2]
[350088442,1737611465910,-2682.36,0.0002072,2]
[350088443,1737611465919,-751.43,0.0002072,2]
[350088444,1737611465928,-500.0,0.0002072,2]
[350088445,1737611465938,-601.96,0.0002072,2]
[350088446,1737611465948,-500.0,0.0002072,2]
[350088447,1737611465958,-1027.46,0.0002072,2]
[350088448,1737611465967,-500.0,0.0002072,2]
[350088449,1737611465977,-2511.24,0.0002072,2]
[350088450,1737611465988,-622.38,0.0002072,2]
[350088451,1737611465998,-2087.18199457,0.00020728,2]
[350088452,1737611466007,-167.14,0.00020758,2]
[350088453,1737611466021,-2266.70176659,0.00020771,2]
[350088454,1737611466031,-799.2989237,0.00020783,2]
[350088455,1737611466040,-877.32378342,0.0002079,2]
[350088456,1737611466050,-877.32378342,0.00020796,2]
[350088457,1737611466060,-17616.006843,0.00020796,2]
[350088458,1737611466070,-2087.18199457,0.00020797,2]
[350088459,1737611466080,-1265.682212,0.00020797,2]
[350088460,1737611466089,-1000.0,0.00020799,2]
[350088461,1737611466098,-200.0,0.000208,2]
[350088462,1737611466108,-287.50506083,0.0002081,2]
[350088463,1737611466118,-152.0,0.00020812,4]
[350088464,1737611466127,-877.32378342,0.00020814,2]
[350088465,1737611466137,-500.0,0.0002082,2]
[350088466,1737611466146,-652.91,0.0002082,2]
[350088467,1737611466156,-500.0,0.0002082,2]
[350088468,1737611466166,-1103.54,0.0002082,2]
[350088469,1737611466175,-500.0,0.0002082,2]
[350088470,1737611466184,-500.0,0.0002082,2]
[350088471,1737611466194,-500.0,0.0002082,2]
[350088472,1737611466203,-523.75,0.0002082,2]
[350088473,1737611466212,-500.0,0.0002082,2]
[350088474,1737611466222,-814.46,0.0002082,2]
[350088475,1737611466231,-515.51174931,0.0002082,2]
[350088476,1737611466241,-521.67,0.0002082,2]
[350088477,1737611466250,-592.32987703,0.0002082,2]
[350088478,1737611466260,-500.0,0.0002082,2]
[350088479,1737611466270,-550.36,0.0002082,2]
[350088480,1737611466279,-661.84,0.0002082,2]
[350088481,1737611466289,-500.0,0.0002082,2]
[350088482,1737611466298,-500.0,0.0002082,2]
[350088483,1737611466307,-500.0,0.0002082,2]
[350088484,1737611466316,-500.0,0.0002082,2]
[350088485,1737611466326,-756.71,0.0002082,2]
[350088486,1737611466335,-500.0,0.0002082,2]
[350088487,1737611466345,-820.51,0.0002082,2]
[350088488,1737611466355,-500.0,0.0002082,2]
[350088489,1737611466364,-500.0,0.0002082,2]
[350088490,1737611466374,-500.0,0.0002082,2]
[350088491,1737611466383,-870.52,0.0002082,2]
[350088492,1737611466392,-500.0,0.0002082,2]
[350088493,1737611466402,-500.0,0.0002082,2]
[350088494,1737611466412,-500.0,0.0002082,2]
[350088495,1737611466421,-846.98,0.0002082,2]
[350088496,1737611466430,-560.38,0.0002082,2]
[350088497,1737611466440,-804.46,0.0002082,2]
[350088498,1737611466449,-500.0,0.0002082,2]
[350088499,1737611466459,-596.15,0.0002082,2]
[350088500,1737611466471,-500.0,0.0002082,2]
[350088501,1737611466481,-730.62,0.0002082,2]
[350088502,1737611466490,-722.81,0.0002082,2]
[350088503,1737611466499,-500.0,0.0002082,2]
[350088504,1737611466509,-500.0,0.0002082,2]
[350088505,1737611466518,-926.24,0.0002082,2]
[350088506,1737611466528,-872.58,0.0002082,2]
[350088507,1737611466537,-756.42,0.0002082,2]
[350088508,1737611466546,-571.58,0.0002082,2]
[350088509,1737611466556,-441.794103,0.0002082,2]
[350088510,1737611466565,-907.07,0.0002082,2]
[350088511,1737611466574,-500.0,0.0002082,2]
[350088512,1737611466584,-500.0,0.0002082,2]
[350088513,1737611466594,-740.54,0.0002082,2]
[350088514,1737611466604,-642.453793,0.0002082,2]
[350088515,1737611466613,-500.0,0.0002082,2]
[350088516,1737611466623,-525.513223,0.0002082,2]
[350088517,1737611466632,-959.94,0.0002082,2]
[350088518,1737611466641,-770.37,0.0002082,2]
[350088519,1737611466792,-500.0,0.0002082,2]
[350088520,1737611466803,-961.12,0.0002082,2]
[350088521,1737611466812,-928.68,0.0002082,2]
[350088522,1737611466822,-500.0,0.0002082,2]
[350088523,1737611466832,-3389.92,0.0002082,2]
[350088524,1737611466841,-423.35632094,0.0002082,2]
[350088525,1737611466851,-1163.05,0.0002082,2]
[350088526,1737611466860,-3328.2,0.0002082,2]
[350088527,1737611466870,-500.0,0.0002082,2]
[350088528,1737611466880,-647.35,0.0002082,2]
[350088529,1737611466890,-597.37,0.0002082,2]
[350088530,1737611466899,-1351.46,0.0002082,2]
[350088531,1737611466909,-500.0,0.0002082,2]
[350088532,1737611466919,-1916.09,0.0002082,2]
[350088533,1737611466928,-1853.67,0.0002082,2]
[350088534,1737611466937,-500.0,0.0002082,2]
[350088535,1737611466947,-1180.89,0.0002082,2]
[350088536,1737611466957,-1225.17,0.0002082,2]
[350088537,1737611466967,-604.47,0.0002082,2]
[350088538,1737611466976,-2192.28,0.0002082,2]
[350088539,1737611466986,-1087.59,0.0002082,2]
[350088540,1737611466996,-2557.78,0.0002082,2]
[350088541,1737611467005,-500.0,0.0002082,2]
[350088542,1737611467015,-500.0,0.0002082,2]
[350088543,1737611467023,-687.86,0.0002082,2]
[350088544,1737611467033,-526.68,0.0002082,2]
[350088545,1737611467043,-1114.72,0.0002082,2]
[350088546,1737611467053,-500.0,0.0002082,2]
[350088547,1737611467062,-1015.0,0.0002082,2]
[350088548,1737611467072,-2635.11,0.0002082,2]
[350088549,1737611467082,-1230.27,0.0002082,2]
[350088550,1737611467092,-500.0,0.0002082,2]
[350088551,1737611467102,-582.1,0.0002082,2]
[350088552,1737611467111,-500.0,0.0002082,2]
[350088553,1737611467120,-500.0,0.0002082,2]
[350088554,1737611467130,-1842.56,0.0002082,2]
[350088555,1737611467139,-500.0,0.0002082,2]
[350088556,1737611467148,-500.0,0.0002082,2]
[350088557,1737611467157,-862.13,0.0002082,2]
[350088558,1737611467167,-500.0,0.0002082,2]
[350088559,1737611467176,-687.14,0.0002082,2]
[350088560,1737611467186,-500.0,0.0002082,2]
[350088561,1737611467195,-500.0,0.0002082,2]
[350088562,1737611467205,-500.0,0.0002082,2]
[350088563,1737611467215,-1223.08,0.0002082,2]
[350088564,1737611467225,-653.44,0.0002082,2]
[350088565,1737611467234,-500.0,0.0002082,2]
[350088566,1737611467244,-568.47,0.0002082,2]
[350088567,1737611467253,-803.35,0.0002082,2]
[350088568,1737611467263,-519.41,0.0002082,2]
[350088569,1737611467272,-1382.01,0.0002082,2]
[350088570,1737611467282,-1006.43,0.0002082,2]
[350088571,1737611467291,-500.0,0.0002082,2]
[350088572,1737611467300,-1438.72,0.0002082,2]
[350088573,1737611467311,-1915.2,0.0002082,2]
[350088574,1737611467320,-500.0,0.0002082,2]
[350088575,1737611467331,-500.0,0.0002082,2]
[350088576,1737611467340,-798.39,0.0002082,2]
[350088577,1737611467350,-2677.87,0.0002082,2]
[350088578,1737611467361,-2057.62,0.0002082,2]
[350088579,1737611467370,-17616.006843,0.0002082,2]
[350088580,1737611467380,-200.0,0.0002082,2]
[350088581,1737611467389,-2767.8528803,0.00020821,2]
[350088582,1737611467399,-500.0,0.00020821,2]
[350088583,1737611467408,-500.0,0.00020821,2]
[350088584,1737611467418,-283.28791583,0.00020821,2]
[350088585,1737611467427,-500.0,0.00020821,2]
[350088586,1737611467436,-500.0,0.00020821,2]
[350088587,1737611467446,-500.0,0.00020821,2]
[350088588,1737611467456,-184.6405745,0.00020821,2]
[350088589,1737611467465,-500.0,0.00020821,2]
[350088590,1737611467475,-500.0,0.00020821,2]
[350088591,1737611467484,-500.0,0.00020821,2]
[350088592,1737611467493,-151.0,0.00020821,2]
[350088593,1737611467502,-500.0,0.00020821,2]
[350088594,1737611467511,-151.0,0.00020821,2]
[350088595,1737611467520,-500.0,0.00020821,2]
[350088596,1737611467532,-500.0,0.00020821,2]
[350088597,1737611467541,-500.0,0.00020821,2]
[350088598,1737611467551,-500.0,0.00020821,2]
[350088599,1737611467560,-500.0,0.00020821,2]
[350088600,1737611467569,-500.0,0.00020821,2]
[350088601,1737611467579,-500.0,0.00020821,2]
[350088602,1737611467588,-500.0,0.00020821,2]
[350088603,1737611467597,-500.0,0.00020821,2]
[350088604,1737611467606,-500.0,0.00020821,2]
[350088605,1737611467616,-513.53,0.00020821,2]
[350088606,1737611467625,-500.0,0.00020821,2]
[350088607,1737611467635,-353.45218092,0.00020821,2]
[350088608,1737611467644,-500.0,0.00020821,2]
[350088609,1737611467654,-500.0,0.00020821,2]
[350088610,1737611467664,-500.0,0.00020821,2]
[350088611,1737611467673,-500.0,0.00020821,2]
[350088612,1737611467683,-500.0,0.00020821,2]
[350088613,1737611467693,-500.0,0.00020821,2]
[350088614,1737611467703,-532.0,0.00020821,2]
[350088615,1737611467712,-500.0,0.00020821,2]
[350088616,1737611467721,-500.0,0.00020821,2]
[350088617,1737611467731,-854.04,0.00020821,2]
[350088618,1737611467740,-500.0,0.00020821,2]
[350088619,1737611467749,-500.0,0.00020821,2]
[350088620,1737611467759,-500.0,0.00020821,2]
[350088621,1737611467768,-500.0,0.00020821,2]
[350088622,1737611467778,-500.0,0.00020821,2]
[350088623,1737611467787,-500.0,0.00020821,2]
[350088624,1737611467796,-500.0,0.00020821,2]
[350088625,1737611467806,-751.33,0.00020821,2]
[350088626,1737611467815,-500.0,0.00020821,2]
[350088627,1737611467824,-500.0,0.00020821,2]
[350088628,1737611467834,-151.0,0.00020821,2]
[350088629,1737611467843,-151.0,0.00020821,2]
[350088630,1737611467852,-645.53,0.00020821,2]
[350088631,1737611467862,-716.43,0.00020821,2]
[350088632,1737611467872,-500.0,0.00020821,2]
[350088633,1737611467882,-500.0,0.00020821,2]
[350088634,1737611467891,-500.0,0.00020821,2]
[350088635,1737611467901,-500.0,0.00020821,2]
[350088636,1737611467910,-500.0,0.00020821,2]
[350088637,1737611467919,-500.0,0.00020821,2]
[350088638,1737611467928,-500.0,0.00020821,2]
[350088639,1737611467937,-500.0,0.00020821,2]
[350088640,1737611467946,-500.0,0.00020821,2]
[350088641,1737611467955,-500.0,0.00020821,2]
[350088642,1737611467965,-500.0,0.00020821,2]
[350088643,1737611467974,-537.48,0.00020821,2]
[350088644,1737611467983,-500.0,0.00020821,2]
[350088645,1737611467992,-500.0,0.00020821,2]
[350088646,1737611468002,-500.0,0.00020821,2]
[350088647,1737611468011,-500.0,0.00020821,2]
[350088648,1737611468020,-500.0,0.00020821,2]
[350088649,1737611468030,-500.0,0.00020821,2]
[350088650,1737611468039,-500.0,0.00020821,2]
[350088651,1737611468049,-500.0,0.00020821,2]
[350088652,1737611468058,-500.0,0.00020821,2]
[350088653,1737611468067,-500.0,0.00020821,2]
[350088654,1737611468075,-1962.38,0.00020821,2]
[350088655,1737611468084,-5446.26,0.00020821,2]
[350088656,1737611468094,-500.0,0.00020821,2]
[350088657,1737611468104,-1116.01,0.00020821,2]
[350088658,1737611468113,-500.0,0.00020821,2]
[350088659,1737611468122,-1678.25,0.00020821,2]
[350088660,1737611468131,-1056.81,0.00020821,2]
[350088661,1737611468141,-500.0,0.00020821,2]
[350088662,1737611468151,-500.0,0.00020821,2]
[350088663,1737611468161,-500.0,0.00020821,2]
[350088664,1737611468170,-500.0,0.00020821,2]
[350088665,1737611468180,-881.08,0.00020821,2]
[350088666,1737611468189,-500.0,0.00020821,2]
[350088667,1737611468200,-388.07907641,0.00020821,2]
[350088668,1737611468211,-2041.21,0.00020821,2]
[350088669,1737611468221,-1105.7,0.00020821,2]
[350088670,1737611468233,-500.0,0.00020821,2]
[350088671,1737611468244,-500.0,0.00020821,2]
[350088672,1737611468253,-500.0,0.00020821,2]
[350088673,1737611468263,-941.55,0.00020821,2]
[350088674,1737611468272,-500.0,0.00020821,2]
[350088675,1737611468281,-2112.6,0.00020821,2]
[350088676,1737611468291,-1306.29,0.00020821,2]
[350088677,1737611468300,-412.86999708,0.00020821,2]
[350088678,1737611468309,-1757.87,0.00020821,2]
[350088679,1737611468319,-500.0,0.00020821,2]
[350088680,1737611468329,-1355.17,0.00020821,2]
[350088681,1737611468338,-500.0,0.00020821,2]
[350088682,1737611468347,-500.0,0.00020821,2]
[350088683,1737611468356,-500.0,0.00020821,2]
[350088684,1737611468365,-3281.81,0.00020821,2]
[350088685,1737611468374,-1000.0,0.00020821,2]
[350088686,1737611468384,-1048.55,0.00020821,2]
[350088687,1737611468392,-1220.7,0.00020821,2]
[350088688,1737611468401,-500.0,0.00020821,2]
[350088689,1737611468410,-500.0,0.00020821,2]
[350088690,1737611468420,-985.82,0.00020821,2]
[350088691,1737611468430,-886.58,0.00020821,2]
[350088692,1737611468439,-1562.02,0.00020821,2]
[350088693,1737611468449,-500.0,0.00020821,2]
[350088694,1737611468459,-2055.78,0.00020821,2]
[350088695,1737611468468,-500.0,0.00020821,2]
[350088696,1737611468478,-1302.95,0.00020821,2]
[350088697,1737611468487,-169.064511,0.00020821,2]
[350088698,1737611468497,-169.064511,0.00020821,2]
[350088699,1737611468506,-500.0,0.00020821,2]
[350088700,1737611468516,-577.7,0.00020821,2]
[350088701,1737611468525,-433.512751,0.00020821,2]
[350088702,1737611468535,-433.512751,0.00020821,2]
[350088703,1737611468544,-906.73,0.00020821,2]
[350088704,1737611468554,-500.0,0.00020821,2]
[350088705,1737611468563,-500.0,0.00020821,2]
[350088706,1737611468572,-500.0,0.00020821,2]
[350088707,1737611468582,-500.0,0.00020821,2]
[350088708,1737611468592,-500.0,0.00020821,2]
[350088709,1737611468603,-500.0,0.00020821,2]
[350088710,1737611468612,-524.03078,0.00020821,2]
[350088711,1737611468622,-697.74971877,0.00020821,2]
[350088712,1737611468633,-2131.97900548,0.00020822,2]
[350088713,1737611468643,-799.2989237,0.00020824,2]
[350088714,1737611468654,-2767.8528803,0.00020827,2]
[350088715,1737611468664,-11919.20312374,0.00020833,2]
[350088716,1737611468674,-2131.97900548,0.00020835,2]
[350088717,1737611468683,-17616.006843,0.00020841,2]
[350088718,1737611468693,-1986.02167219,0.00020845,2]
[350088719,1737611468702,-877.32378342,0.00020848,2]
[350088720,1737611468711,-476.4610763,0.0002085,2]
[350088721,1737611468721,-5181.69359419,0.00020851,2]
[350088722,1737611468731,-17616.006843,0.00020851,2]
[350088723,1737611468740,-697.74971877,0.00020857,2]
[350088724,1737611468750,-799.2989237,0.00020858,2]
[350088725,1737611468760,-1986.02167219,0.00020858,2]
[350088726,1737611468769,-232.45,0.0002086,2]
[350088727,1737611468779,-2087.18199457,0.00020866,2]
[350088728,1737611468789,-55898.30659621,0.00020868,2]
[350088729,1737611468798,-11919.20312374,0.00020869,2]
[350088730,1737611468808,-287.50506083,0.0002087,2]
[350088731,1737611468818,-2504.5,0.00020871,2]
[350088732,1737611468828,-1265.682212,0.00020875,2]
[350088733,1737611468838,-476.4610763,0.00020875,2]
[350088734,1737611468847,-209.15294992,0.00020878,2]
[350088735,1737611468857,-2767.8528803,0.00020879,2]
[350088736,1737611468867,-799.2989237,0.00020879,2]
[350088737,1737611468878,-287.50506083,0.0002088,2]
[350088738,1737611468888,-799.2989237,0.00020883,2]
[350088739,1737611468898,-476.4610763,0.00020884,2]
[350088740,1737611468909,-1986.02167219,0.00020886,2]
[350088741,1737611468919,-5181.69359419,0.00020886,2]
[350088742,1737611468928,-287.50506083,0.00020888,2]
[350088743,1737611468940,-877.32378342,0.00020889,2]
[350088744,1737611468949,-5181.69359419,0.00020892,2]
[350088745,1737611468959,-1265.682212,0.00020896,2]
[350088746,1737611468969,-11919.20312374,0.00020897,2]
[350088747,1737611468978,-200.0,0.00020899,2]
[350088748,1737611468987,-472.49299766,0.00020899,2]
[350088749,1737611468999,-4177.46804862,0.000209,2]
[350088750,1737611469008,-2600.0,0.000209,7]
[350088751,1737611469018,-2131.97900548,0.000209,2]
[350088752,1737611469028,-697.74971877,0.000209,2]
[350088753,1737611469038,-476.4610763,0.00020905,2]
[350088754,1737611469056,-2131.97900548,0.00020905,2]
[350088755,1737611469065,-17616.006843,0.00020907,2]
[350088756,1737611469074,-5181.69359419,0.00020909,2]
[350088757,1737611469084,-1986.02167219,0.00020911,2]
[350088758,1737611469093,-209.15294992,0.00020913,2]
[350088759,1737611469102,-697.74971877,0.00020913,2]
[350088760,1737611469112,-697.74971877,0.00020915,2]
[350088761,1737611469121,-209.15294992,0.00020917,2]
[350088762,1737611469131,-209.15294992,0.00020917,2]
[350088763,1737611469140,-287.50506083,0.00020926,2]
[350088764,1737611469149,-209.15294992,0.00020927,2]
[350088765,1737611469159,-1986.02167219,0.00020929,2]
[350088766,1737611469168,-2767.8528803,0.00020931,2]
[350088767,1737611469178,-1265.682212,0.00020931,2]
[350088768,1737611469187,-55898.30659621,0.00020933,2]
[350088769,1737611469197,-11919.20312374,0.00020934,2]
[350088770,1737611469206,-1265.682212,0.00020934,2]
[350088771,1737611469216,-2087.18199457,0.00020934,2]
[350088772,1737611469225,-11919.20312374,0.00020935,2]
[350088773,1737611469235,-2131.97900548,0.00020936,2]
[350088774,1737611469245,-55898.30659621,0.00020937,2]
[350088775,1737611469258,-8271.81361351,0.00020945,2]
[350088776,1737611469613,-47626.4929827,0.00020945,2]
[350088777,1737611469623,-2767.8528803,0.00020947,2]
[350088778,1737611469633,-5181.69359419,0.00020948,2]
[350088779,1737611469642,-55898.30659621,0.00020949,2]
[350088780,1737611469652,-476.4610763,0.0002095,2]
[350088781,1737611469661,-209.0,0.0002095,2]
[350088782,1737611469671,-213.0,0.0002095,2]
[350088783,1737611469681,-922.756253,0.00020956,2]
[350088784,1737611469690,-500.0,0.00020957,2]
[350088785,1737611469699,-81229.57547149,0.0002097,14]
[350088786,1737611469709,-1333.61,0.00020992,2]
[350088787,1737611469719,-500.0,0.00020993,2]
[350088788,1737611469728,-635.49,0.00020993,2]
[350088789,1737611469738,-500.0,0.00020993,2]
[350088790,1737611469748,-992.45,0.00020994,2]
[350088791,1737611469757,-500.0,0.00020994,2]
[350088792,1737611469767,-1922.27,0.00020994,2]
[350088793,1737611469776,-736.38,0.00020994,2]
[350088794,1737611469786,-598.74,0.00020994,2]
[350088795,1737611469795,-1530.88,0.00020994,2]
[350088796,1737611469804,-1226.94,0.00020994,2]
[350088797,1737611469813,-1453.16,0.00020994,2]
[350088798,1737611469824,-1139.9,0.00020994,2]
[350088799,1737611469833,-794.06,0.00020994,2]
[350088800,1737611469842,-921.2,0.00020994,2]
[350088801,1737611469852,-2179.73,0.00020994,2]
[350088802,1737611469861,-2080.14,0.00020994,2]
[350088803,1737611469871,-1094.55,0.00020994,2]
[350088804,1737611469885,-898.14,0.00020994,2]
[350088805,1737611469895,-2682.36,0.00020994,2]
[350088806,1737611469905,-751.43,0.00020994,2]
[350088807,1737611469914,-500.0,0.00020994,2]
[350088808,1737611469923,-493.72449882,0.00020994,2]
[350088809,1737611469933,-1027.46,0.00020994,2]
[350088810,1737611469942,-500.0,0.00020994,2]
[350088811,1737611469951,-2511.24,0.00020994,2]
[350088812,1737611469962,-622.38,0.00020994,2]
[350088813,1737611469971,-2000.0,0.00021,2]
[350088814,1737611469981,-700.0,0.00021,2]
[350088815,1737611469991,-2087.18199457,0.00021003,2]
[350088816,1737611470000,-2110.0,0.00021005,2]
[350088817,1737611470014,-2087.18199457,0.00021072,2]
[350088818,1737611470023,-500.0,0.00021094,2]
[350088819,1737611470032,-652.91,0.00021094,2]
[350088820,1737611470042,-500.0,0.00021094,2]
[350088821,1737611470051,-1103.54,0.00021094,2]
[350088822,1737611470060,-500.0,0.00021094,2]
[350088823,1737611470070,-500.0,0.00021094,2]
[350088824,1737611470079,-500.0,0.00021094,2]
[350088825,1737611470089,-523.75,0.00021094,2]
[350088826,1737611470097,-500.0,0.00021094,2]
[350088827,1737611470106,-814.46,0.00021094,2]
[350088828,1737611470115,-521.67,0.00021094,2]
[350088829,1737611470124,-500.0,0.00021094,2]
[350088830,1737611470133,-550.36,0.00021094,2]
[350088831,1737611470142,-661.84,0.00021094,2]
[350088832,1737611470152,-500.0,0.00021094,2]
[350088833,1737611470162,-500.0,0.00021094,2]
[350088834,1737611470171,-500.0,0.00021094,2]
[350088835,1737611470181,-500.0,0.00021094,2]
[350088836,1737611470190,-756.71,0.00021094,2]
[350088837,1737611470199,-500.0,0.00021094,2]
[350088838,1737611470209,-820.51,0.00021094,2]
[350088839,1737611470218,-500.0,0.00021094,2]
[350088840,1737611470227,-443.51931436,0.00021094,2]
[350088841,1737611470236,-500.0,0.00021094,2]
[350088842,1737611470246,-870.52,0.00021094,2]
[350088843,1737611470255,-500.0,0.00021094,2]
[350088844,1737611470264,-500.0,0.00021094,2]
[350088845,1737611470273,-500.0,0.00021094,2]
[350088846,1737611470283,-846.98,0.00021094,2]
[350088847,1737611470292,-560.38,0.00021094,2]
[350088848,1737611470301,-804.46,0.00021094,2]
[350088849,1737611470310,-500.0,0.00021094,2]
[350088850,1737611470319,-596.15,0.00021094,2]
[350088851,1737611470328,-500.0,0.00021094,2]
[350088852,1737611470338,-730.62,0.00021094,2]
[350088853,1737611470347,-722.81,0.00021094,2]
[350088854,1737611470356,-500.0,0.00021094,2]
[350088855,1737611470365,-500.0,0.00021094,2]
[350088856,1737611470374,-926.24,0.00021094,2]
[350088857,1737611470383,-872.58,0.00021094,2]
[350088858,1737611470392,-756.42,0.00021094,2]
[350088859,1737611470402,-571.58,0.00021094,2]
[350088860,1737611470411,-441.794103,0.00021094,2]
[350088861,1737611470420,-907.07,0.00021094,2]
[350088862,1737611470430,-500.0,0.00021094,2]
[350088863,1737611470440,-500.0,0.00021094,2]
[350088864,1737611470450,-740.54,0.00021094,2]
[350088865,1737611470459,-642.453793,0.00021094,2]
[350088866,1737611470468,-500.0,0.00021094,2]
[350088867,1737611470478,-959.94,0.00021094,2]
[350088868,1737611470487,-770.37,0.00021094,2]
[350088869,1737611470496,-500.0,0.00021094,2]
[350088870,1737611470507,-961.12,0.00021094,2]
[350088871,1737611470517,-928.68,0.00021094,2]
[350088872,1737611470526,-500.0,0.00021094,2]
[350088873,1737611470536,-3389.92,0.00021094,2]
[350088874,1737611470547,-1163.05,0.00021094,2]
[350088875,1737611470557,-3328.2,0.00021094,2]
[350088876,1737611470566,-433.24254684,0.00021094,2]
[350088877,1737611470576,-647.35,0.00021094,2]
[350088878,1737611470586,-597.37,0.00021094,2]
[350088879,1737611470595,-1351.46,0.00021094,2]
[350088880,1737611470604,-500.0,0.00021094,2]
[350088881,1737611470614,-1916.09,0.00021094,2]
[350088882,1737611470625,-1853.67,0.00021094,2]
[350088883,1737611470635,-500.0,0.00021094,2]
[350088884,1737611470645,-1180.89,0.00021094,2]
[350088885,1737611470655,-1225.17,0.00021094,2]
[350088886,1737611470664,-604.47,0.00021094,2]
[350088887,1737611470674,-2192.28,0.00021094,2]
[350088888,1737611470684,-1087.59,0.00021094,2]
[350088889,1737611470694,-2557.78,0.00021094,2]
[350088890,1737611470703,-500.0,0.00021094,2]
[350088891,1737611470713,-500.0,0.00021094,2]
[350088892,1737611470722,-687.86,0.00021094,2]
[350088893,1737611470731,-526.68,0.00021094,2]
[350088894,1737611470740,-1114.72,0.00021094,2]
[350088895,1737611470750,-500.0,0.00021094,2]
[350088896,1737611470759,-1015.0,0.00021094,2]
[350088897,1737611470769,-2635.11,0.00021094,2]
[350088898,1737611470778,-1230.27,0.00021094,2]
[350088899,1737611470787,-271.36297565,0.00021094,2]
[350088900,1737611470797,-582.1,0.00021094,2]
[350088901,1737611470806,-500.0,0.00021094,2]
[350088902,1737611470815,-500.0,0.00021094,2]
[350088903,1737611470825,-1842.56,0.00021094,2]
[350088904,1737611470834,-265.05465492,0.00021094,2]
[350088905,1737611470843,-500.0,0.00021094,2]
[350088906,1737611470853,-862.13,0.00021094,2]
[350088907,1737611470862,-169.064511,0.00021094,2]
[350088908,1737611470872,-169.064511,0.00021094,2]
[350088909,1737611470881,-518.7662952,0.00021094,2]
[350088910,1737611470890,-687.14,0.00021094,2]
[350088911,1737611470899,-500.0,0.00021094,2]
[350088912,1737611470909,-433.512751,0.00021094,2]
[350088913,1737611470918,-500.0,0.00021094,2]
[350088914,1737611470928,-500.0,0.00021094,2]
[350088915,1737611470937,-433.512751,0.00021094,2]
[350088916,1737611470947,-1223.08,0.00021094,2]
[350088917,1737611470956,-653.44,0.00021094,2]
[350088918,1737611470965,-500.0,0.00021094,2]